fUSD/lending_fUSD_20250120
["ID","MTS","AMOUNT","RATE_DAILY","PERIOD"]
[349766326,1737417063733,-814.47,0.00021168,2]
[349766327,1737417063742,-1868.63,0.00021168,2]
[349766328,1737417063752,-540.34,0.00021168,2]
[349766329,1737417063762,-1038.77,0.00021168,2]
[349766330,1737417063771,-713.13,0.00021168,2]
[349766331,1737417063781,-1164.98,0.00021168,2]
[349766332,1737417063793,-1837.24,0.00021168,2]
[349766333,1737417063803,-432.7,0.00021168,2]
[349766334,1737417063812,-1286.57,0.00021168,2]
[349766335,1737417063822,-682.9,0.00021168,2]
[349766336,1737417063831,-683.03,0.00021168,2]
[349766337,1737417063841,-500.0,0.00021168,2]
[349766338,1737417063851,-1860.39,0.00021168,2]
[349766339,1737417063862,-892.7,0.00021168,2]
[349766340,1737417063872,-500.0,0.00021168,2]
[349766341,1737417063882,-500.0,0.00021168,2]
[349766342,1737417063892,-500.0,0.00021168,2]
[349766343,1737417063903,-598.0,0.00021168,2]
[349766344,1737417063912,-626.45,0.00021168,2]
[349766345,1737417063922,-2220.13,0.00021168,2]
[349766346,1737417063932,-1849.02,0.00021168,2]
[349766347,1737417063942,-500.0,0.00021168,2]
[349766348,1737417063952,-506.46,0.00021169,2]
[349766349,1737417063962,-500.0,0.00021169,2]
[349766350,1737417063974,-514.18,0.00021169,2]
[349766351,1737417063984,-233.461181,0.00021169,2]
[349766352,1737417063995,-500.0,0.00021169,2]
[349766353,1737417064004,-500.0,0.00021169,2]
[349766354,1737417064016,-957.55,0.00021169,2]
[349766355,1737417064026,-386.683086,0.00021169,2]
[349766356,1737417064036,-1758.19,0.00021169,2]
[349766357,1737417064051,-1187.43,0.00021169,2]
[349766358,1737417064061,-500.0,0.00021169,2]
[349766359,1737417064071,-618.43,0.00021169,2]
[349766360,1737417064080,-597.06,0.00021169,2]
[349766361,1737417064090,-764.65,0.00021169,2]
[349766362,1737417064101,-746.84,0.00021169,2]
[349766363,1737417064110,-1744.63,0.00021169,2]
[349766364,1737417064121,-1275.72,0.00021169,2]
[349766365,1737417064131,-500.0,0.00021169,2]
[349766366,1737417064141,-500.0,0.00021169,2]
[349766367,1737417064151,-1525.72,0.00021169,2]
[349766368,1737417064162,-500.0,0.00021169,2]
[349766369,1737417064173,-1284.73,0.00021169,2]
[349766370,1737417064186,-2470.88,0.00021169,2]
[349766371,1737417064196,-1738.49,0.00021169,2]
[349766372,1737417064207,-1865.01,0.00021169,2]
[349766373,1737417064218,-500.0,0.00021169,2]
[349766374,1737417064230,-500.0,0.00021169,2]
[349766375,1737417064240,-809.74,0.00021169,2]
[349766376,1737417064251,-884.03,0.00021169,2]
[349766377,1737417064265,-1950.47,0.00021169,2]
[349766378,1737417064277,-500.0,0.00021169,2]
[349766379,1737417064297,-1114.14,0.00021169,2]
[349766380,1737417064307,-467.27700577,0.00021169,2]
[349766381,1737417064318,-555.22,0.00021169,2]
[349766382,1737417064328,-205.46453777,0.00021169,2]
[349766383,1737417064338,-925.65,0.00021199,30]
[349766384,1737417064349,-205.46453777,0.00021208,2]
[349766385,1737417064359,-205.46453777,0.00021246,2]
[349766386,1737417064370,-500.0,0.00021268,2]
[349766387,1737417064380,-500.0,0.00021268,2]
[349766388,1737417064391,-500.0,0.00021268,2]
[349766389,1737417064401,-1219.86,0.00021268,2]
[349766390,1737417064411,-621.68,0.00021268,2]
[349766391,1737417064421,-500.0,0.00021268,2]
[349766392,1737417064431,-969.3,0.00021268,2]
[349766393,1737417064441,-681.26,0.00021268,2]
[349766394,1737417064451,-1642.59,0.00021268,2]
[349766395,1737417064461,-500.0,0.00021268,2]
[349766396,1737417064471,-3555.51,0.00021268,2]
[349766397,1737417064481,-500.0,0.00021268,2]
[349766398,1737417064491,-527.22,0.00021268,2]
[349766399,1737417064501,-507.75,0.00021268,2]
[349766400,1737417064511,-1620.67,0.00021268,2]
[349766401,1737417064641,-506.49,0.00021268,2]
[349766402,1737417064651,-761.08,0.00021268,2]
[349766403,1737417064660,-987.65,0.00021268,2]
[349766404,1737417064669,-500.0,0.00021268,2]
[349766405,1737417064678,-172.76549857,0.00021268,2]
[349766406,1737417064688,-960.52,0.00021268,2]
[349766407,1737417064697,-500.0,0.00021268,2]
[349766408,1737417064707,-1413.51,0.00021268,2]
[349766409,1737417064716,-1222.69,0.00021268,2]
[349766410,1737417064729,-205.46453777,0.00021285,2]
[349766411,1737417064738,-625.03940628,0.00021304,2]
[349766412,1737417064749,-1500.0,0.00021322,2]
[349766413,1737417064758,-205.46453777,0.00021323,2]
[349766414,1737417064767,-1268.0,0.00021333,2]
[349766415,1737417064776,-2018.0,0.00021333,2]
[349766416,1737417064786,-636.0,0.00021333,2]
[349766417,1737417064798,-150.0,0.00021333,2]
[349766418,1737417064807,-567.0,0.00021333,2]
[349766419,1737417064816,-1863.0,0.00021333,2]
[349766420,1737417064826,-898.0,0.00021333,2]
[349766421,1737417064835,-2992.022,0.00021333,2]
[349766422,1737417064847,-907.0,0.00021333,2]
[349766423,1737417064858,-1261.0,0.00021333,2]
[349766424,1737417064867,-150.0,0.00021333,2]
[349766425,1737417064877,-3983.0,0.00021333,2]
[349766426,1737417064887,-539.707,0.00021333,2]
[349766427,1737417064896,-150.0,0.00021333,2]
[349766428,1737417064905,-150.0,0.00021333,2]
[349766429,1737417064914,-3901.0,0.00021333,2]
[349766430,1737417064923,-150.0,0.00021333,2]
[349766431,1737417064932,-36866.12208704,0.00021334,2]
[349766432,1737417064942,-205.46453777,0.00021362,2]
[349766433,1737417064951,-500.0,0.00021369,2]
[349766434,1737417064960,-500.0,0.00021369,2]
[349766435,1737417064969,-500.0,0.00021369,2]
[349766436,1737417064979,-661.37,0.00021369,2]
[349766437,1737417064988,-500.0,0.00021369,2]
[349766438,1737417064997,-500.0,0.00021369,2]
[349766439,1737417065006,-500.0,0.00021369,2]
[349766440,1737417065017,-500.0,0.00021369,2]
[349766441,1737417065027,-500.0,0.00021369,2]
[349766442,1737417065036,-596.47,0.00021369,2]
[349766443,1737417065047,-500.0,0.00021369,2]
[349766444,1737417065056,-500.0,0.00021369,2]
[349766445,1737417065065,-500.0,0.00021369,2]
[349766446,1737417065074,-500.0,0.00021369,2]
[349766447,1737417065083,-500.0,0.00021369,2]
[349766448,1737417065092,-1080.67,0.00021369,2]
[349766449,1737417065101,-500.0,0.00021369,2]
[349766450,1737417065110,-500.0,0.00021369,2]
[349766451,1737417065120,-500.0,0.00021369,2]
[349766452,1737417065129,-500.0,0.00021369,2]
[349766453,1737417065139,-371.18539508,0.00021369,2]
[349766454,1737417065148,-500.0,0.00021369,2]
[349766455,1737417065157,-500.0,0.00021369,2]
[349766456,1737417065167,-500.0,0.00021369,2]
[349766457,1737417065178,-319.42641707,0.00021369,2]
[349766458,1737417065187,-500.0,0.00021369,2]
[349766459,1737417065196,-500.0,0.00021369,2]
[349766460,1737417065205,-500.0,0.00021369,2]
[349766461,1737417065215,-500.0,0.00021369,2]
[349766462,1737417065224,-500.0,0.00021369,2]
[349766463,1737417065233,-500.0,0.00021369,2]
[349766464,1737417065242,-500.0,0.00021369,2]
[349766465,1737417065251,-500.19782587,0.00021369,2]
[349766466,1737417065261,-500.0,0.00021369,2]
[349766467,1737417065270,-500.0,0.00021369,2]
[349766468,1737417065279,-500.0,0.00021369,2]
[349766469,1737417065288,-500.0,0.00021369,2]
[349766470,1737417065298,-500.0,0.00021369,2]
[349766471,1737417065307,-500.0,0.00021369,2]
[349766472,1737417065316,-500.0,0.00021369,2]
[349766473,1737417065325,-500.0,0.00021369,2]
[349766474,1737417065335,-500.0,0.00021369,2]
[349766475,1737417065344,-500.0,0.00021369,2]
[349766476,1737417065353,-591.57,0.00021369,2]
[349766477,1737417065362,-500.0,0.00021369,2]
[349766478,1737417065371,-500.0,0.00021369,2]
[349766479,1737417065381,-500.0,0.00021369,2]
[349766480,1737417065390,-500.0,0.00021369,2]
[349766481,1737417065399,-316.05347278,0.00021369,2]
[349766482,1737417065408,-500.0,0.00021369,2]
[349766483,1737417065417,-500.0,0.00021369,2]
[349766484,1737417065426,-500.0,0.00021369,2]
[349766485,1737417065436,-500.0,0.00021369,2]
[349766486,1737417065445,-500.0,0.00021369,2]
[349766487,1737417065455,-500.0,0.00021369,2]
[349766488,1737417065464,-500.0,0.00021369,2]
[349766489,1737417065473,-500.0,0.00021369,2]
[349766490,1737417065482,-500.0,0.00021369,2]
[349766491,1737417065491,-611.04,0.00021369,2]
[349766492,1737417065500,-500.0,0.00021369,2]
[349766493,1737417065509,-500.0,0.00021369,2]
[349766494,1737417065519,-500.0,0.00021369,2]
[349766495,1737417065527,-500.0,0.00021369,2]
[349766496,1737417065536,-449.11383217,0.00021369,2]
[349766497,1737417065550,-500.0,0.00021369,2]
[349766498,1737417065560,-500.0,0.00021369,2]
[349766499,1737417065569,-500.0,0.00021369,2]
[349766500,1737417065578,-542.98,0.00021369,2]
[349766501,1737417065587,-500.0,0.00021369,2]
[349766502,1737417065597,-500.0,0.00021369,2]
[349766503,1737417065606,-500.0,0.00021369,2]
[349766504,1737417065615,-500.0,0.00021369,2]
[349766505,1737417065625,-500.0,0.00021369,2]
[349766506,1737417065634,-500.0,0.00021369,2]
[349766507,1737417065643,-500.0,0.00021369,2]
[349766508,1737417065652,-500.0,0.00021369,2]
[349766509,1737417065661,-500.0,0.00021369,2]
[349766510,1737417065670,-500.0,0.00021369,2]
[349766511,1737417065679,-540.2,0.00021369,2]
[349766512,1737417065689,-500.0,0.00021369,2]
[349766513,1737417065698,-500.0,0.00021369,2]
[349766514,1737417065707,-548.85,0.00021369,2]
[349766515,1737417065717,-500.0,0.00021369,2]
[349766516,1737417065726,-500.0,0.00021369,2]
[349766517,1737417065735,-500.0,0.00021369,2]
[349766518,1737417065743,-500.0,0.00021369,2]
[349766519,1737417065752,-500.0,0.00021369,2]
[349766520,1737417065762,-500.0,0.00021369,2]
[349766521,1737417065772,-500.0,0.00021369,2]
[349766522,1737417065781,-500.0,0.00021369,2]
[349766523,1737417065793,-500.0,0.00021369,2]
[349766524,1737417065802,-500.0,0.00021369,2]
[349766525,1737417065812,-500.0,0.00021369,2]
[349766526,1737417065821,-500.0,0.00021369,2]
[349766527,1737417065831,-500.0,0.00021369,2]
[349766528,1737417065840,-500.0,0.00021369,2]
[349766529,1737417065849,-500.0,0.00021369,2]
[349766530,1737417065859,-500.0,0.00021369,2]
[349766531,1737417065868,-500.0,0.00021369,2]
[349766532,1737417065878,-500.0,0.00021369,2]
[349766533,1737417065887,-669.36,0.00021369,2]
[349766534,1737417065897,-500.0,0.00021369,2]
[349766535,1737417065906,-500.0,0.00021369,2]
[349766536,1737417065916,-985.22,0.00021369,2]
[349766537,1737417065925,-500.0,0.00021369,2]
[349766538,1737417065934,-500.0,0.00021369,2]
[349766539,1737417065944,-500.0,0.00021369,2]
[349766540,1737417065953,-777.3,0.00021369,2]
[349766541,1737417065963,-544.49,0.00021369,2]
[349766542,1737417065973,-500.0,0.00021369,2]
[349766543,1737417065983,-1099.02,0.00021369,2]
[349766544,1737417065992,-1845.56,0.00021369,2]
[349766545,1737417066002,-500.0,0.00021369,2]
[349766546,1737417066011,-878.23,0.00021369,2]
[349766547,1737417066021,-500.0,0.00021369,2]
[349766548,1737417066030,-500.0,0.00021369,2]
[349766549,1737417066041,-500.0,0.00021369,2]
[349766550,1737417066052,-2476.57,0.00021369,2]
[349766551,1737417066060,-821.42,0.00021369,2]
[349766552,1737417066069,-1198.86,0.00021369,2]
[349766553,1737417066079,-500.0,0.00021369,2]
[349766554,1737417066088,-500.0,0.00021369,2]
[349766555,1737417066096,-500.0,0.00021369,2]
[349766556,1737417066106,-2121.34,0.00021369,2]
[349766557,1737417066115,-500.0,0.00021369,2]
[349766558,1737417066125,-500.0,0.00021369,2]
[349766559,1737417066134,-974.3,0.00021369,2]
[349766560,1737417066143,-792.0,0.00021369,2]
[349766561,1737417066153,-500.0,0.00021369,2]
[349766562,1737417066167,-594.86346554,0.00021369,2]
[349766563,1737417066176,-1319.21,0.00021369,2]
[349766564,1737417066191,-500.0,0.00021369,2]
[349766565,1737417066200,-2587.78,0.00021369,2]
[349766566,1737417066209,-500.0,0.00021369,2]
[349766567,1737417066219,-500.0,0.00021369,2]
[349766568,1737417066228,-995.37,0.00021369,2]
[349766569,1737417066240,-500.0,0.00021369,2]
[349766570,1737417066250,-500.0,0.00021369,2]
[349766571,1737417066260,-500.0,0.00021369,2]
[349766572,1737417066270,-577.54,0.00021369,2]
[349766573,1737417066279,-500.0,0.00021369,2]
[349766574,1737417066289,-500.0,0.00021369,2]
[349766575,1737417066300,-500.0,0.00021369,2]
[349766576,1737417066309,-1101.58,0.00021369,2]
[349766577,1737417066319,-500.0,0.00021369,2]
[349766578,1737417066328,-500.0,0.00021369,2]
[349766579,1737417066338,-500.0,0.00021369,2]
[349766580,1737417066348,-404.63,0.00021369,2]
[349766581,1737417066357,-500.0,0.00021369,2]
[349766582,1737417066366,-1460.32,0.00021369,2]
[349766583,1737417066375,-537.94,0.00021369,2]
[349766584,1737417066385,-1069.22,0.00021369,2]
[349766585,1737417066394,-500.0,0.00021369,2]
[349766586,1737417066404,-500.0,0.00021369,2]
[349766587,1737417066414,-215.57463393,0.00021369,2]
[349766588,1737417066424,-6033.41,0.0002137,2]
[349766589,1737417066433,-500.0,0.00021394,2]
[349766590,1737417066443,-205.46453777,0.000214,2]
[349766591,1737417066452,-205.46453777,0.00021438,2]
[349766592,1737417066462,-500.0,0.00021442,2]
[349766593,1737417066471,-1537.98,0.00021442,2]
[349766594,1737417066480,-837.36,0.00021442,2]
[349766595,1737417066490,-814.47,0.00021442,2]
[349766596,1737417066499,-1868.63,0.00021442,2]
[349766597,1737417066508,-540.34,0.00021442,2]
[349766598,1737417066518,-1038.77,0.00021442,2]
[349766599,1737417066527,-713.13,0.00021442,2]
[349766600,1737417066536,-1164.98,0.00021442,2]
[349766601,1737417066548,-1837.24,0.00021442,2]
[349766602,1737417066558,-1286.57,0.00021442,2]
[349766603,1737417066568,-682.9,0.00021442,2]
[349766604,1737417066578,-683.03,0.00021442,2]
[349766605,1737417066587,-500.0,0.00021442,2]
[349766606,1737417066597,-1860.39,0.00021442,2]
[349766607,1737417066607,-892.7,0.00021442,2]
[349766608,1737417066617,-500.0,0.00021442,2]
[349766609,1737417066626,-500.0,0.00021442,2]
[349766610,1737417066636,-526.88040092,0.00021442,2]
[349766611,1737417066645,-598.0,0.00021442,2]
[349766612,1737417066655,-626.45,0.00021442,2]
[349766613,1737417066664,-2220.13,0.00021442,2]
[349766614,1737417066674,-1849.02,0.00021442,2]
[349766615,1737417066683,-500.0,0.00021442,2]
[349766616,1737417066693,-500.0,0.00021443,2]
[349766617,1737417066702,-514.18,0.00021443,2]
[349766618,1737417066711,-233.461181,0.00021443,2]
[349766619,1737417066721,-500.0,0.00021443,2]
[349766620,1737417066730,-500.0,0.00021443,2]
[349766621,1737417066740,-957.55,0.00021443,2]
[349766622,1737417066749,-386.683086,0.00021443,2]
[349766623,1737417066875,-1758.19,0.00021443,2]
[349766624,1737417066886,-1187.43,0.00021443,2]
[349766625,1737417066896,-500.0,0.00021443,2]
[349766626,1737417066905,-618.43,0.00021443,2]
[349766627,1737417066915,-597.06,0.00021443,2]
[349766628,1737417066924,-764.65,0.00021443,2]
[349766629,1737417066934,-746.84,0.00021443,2]
[349766630,1737417066944,-1744.63,0.00021443,2]
[349766631,1737417066954,-1275.72,0.00021443,2]
[349766632,1737417066963,-500.0,0.00021443,2]
[349766633,1737417066972,-500.0,0.00021443,2]
[349766634,1737417066982,-1525.72,0.00021443,2]
[349766635,1737417066991,-500.0,0.00021443,2]
[349766636,1737417067000,-1284.73,0.00021443,2]
[349766637,1737417067010,-2470.88,0.00021443,2]
[349766638,1737417067020,-1738.49,0.00021443,2]
[349766639,1737417067030,-1865.01,0.00021443,2]
[349766640,1737417067039,-500.0,0.00021443,2]
[349766641,1737417067050,-500.0,0.00021443,2]
[349766642,1737417067060,-809.74,0.00021443,2]
[349766643,1737417067069,-884.03,0.00021443,2]
[349766644,1737417067078,-500.0,0.00021443,2]
[349766645,1737417067087,-1114.14,0.00021443,2]
[349766646,1737417067097,-555.22,0.00021443,2]
[349766647,1737417067106,-205.46453777,0.00021477,2]
[349766648,1737417067115,-300.0,0.00021483,2]
[349766649,1737417067124,-2110.0,0.000215,2]
[349766650,1737417067133,-205.46453777,0.00021515,2]
[349766651,1737417067142,-163.85111953,0.00021527,2]
[349766652,1737417067152,-500.0,0.00021531,2]
[349766653,1737417067161,-500.0,0.00021542,2]
[349766654,1737417067174,-500.0,0.00021542,2]
[349766655,1737417067184,-500.0,0.00021542,2]
[349766656,1737417067194,-1219.86,0.00021542,2]
[349766657,1737417067204,-621.68,0.00021542,2]
[349766658,1737417067214,-500.0,0.00021542,2]
[349766659,1737417067224,-969.3,0.00021542,2]
[349766660,1737417067233,-681.26,0.00021542,2]
[349766661,1737417067242,-1642.59,0.00021542,2]
[349766662,1737417067252,-500.0,0.00021542,2]
[349766663,1737417067262,-3555.51,0.00021542,2]
[349766664,1737417067271,-500.0,0.00021542,2]
[349766665,1737417067280,-527.22,0.00021542,2]
[349766666,1737417067290,-507.75,0.00021542,2]
[349766667,1737417067302,-1620.67,0.00021542,2]
[349766668,1737417067311,-506.49,0.00021542,2]
[349766669,1737417067320,-761.08,0.00021542,2]
[349766670,1737417067330,-987.65,0.00021542,2]
[349766671,1737417067339,-500.0,0.00021542,2]
[349766672,1737417067348,-960.52,0.00021542,2]
[349766673,1737417067357,-500.0,0.00021542,2]
[349766674,1737417067366,-1413.51,0.00021542,2]
[349766675,1737417067376,-1222.69,0.00021542,2]
[349766676,1737417067385,-205.46453777,0.00021554,2]
[349766677,1737417067394,-732.4403852,0.0002156,2]
[349766678,1737417067403,-5062.61372,0.00021567,30]
[349766679,1737417067412,-205.46453777,0.00021592,2]
[349766680,1737417067421,-1000.0,0.000216,2]
[349766681,1737417067431,-625.03940628,0.00021602,2]
[349766682,1737417067440,-36866.12208704,0.00021617,2]
[349766683,1737417067449,-2143.93964271,0.00021618,2]
[349766684,1737417067458,-205.46453777,0.00021631,3]
[349766685,1737417067467,-500.0,0.00021643,2]
[349766686,1737417067476,-500.0,0.00021643,2]
[349766687,1737417067485,-500.0,0.00021643,2]
[349766688,1737417067494,-661.37,0.00021643,2]
[349766689,1737417067503,-500.0,0.00021643,2]
[349766690,1737417067512,-500.0,0.00021643,2]
[349766691,1737417067521,-500.0,0.00021643,2]
[349766692,1737417067530,-500.0,0.00021643,2]
[349766693,1737417067539,-500.0,0.00021643,2]
[349766694,1737417067551,-500.0,0.00021643,2]
[349766695,1737417067560,-500.0,0.00021643,2]
[349766696,1737417067569,-500.0,0.00021643,2]
[349766697,1737417067578,-1080.67,0.00021643,2]
[349766698,1737417067587,-500.0,0.00021643,2]
[349766699,1737417067596,-500.0,0.00021643,2]
[349766700,1737417067606,-500.0,0.00021643,2]
[349766701,1737417067615,-500.0,0.00021643,2]
[349766702,1737417067623,-500.0,0.00021643,2]
[349766703,1737417067633,-500.0,0.00021643,2]
[349766704,1737417067642,-500.0,0.00021643,2]
[349766705,1737417067651,-500.0,0.00021643,2]
[349766706,1737417067660,-500.0,0.00021643,2]
[349766707,1737417067669,-500.0,0.00021643,2]
[349766708,1737417067678,-500.0,0.00021643,2]
[349766709,1737417067687,-500.0,0.00021643,2]
[349766710,1737417067696,-500.0,0.00021643,2]
[349766711,1737417067705,-500.0,0.00021643,2]
[349766712,1737417067714,-500.0,0.00021643,2]
[349766713,1737417067723,-500.0,0.00021643,2]
[349766714,1737417067732,-500.0,0.00021643,2]
[349766715,1737417067741,-500.0,0.00021643,2]
[349766716,1737417067750,-500.0,0.00021643,2]
[349766717,1737417067759,-500.0,0.00021643,2]
[349766718,1737417067768,-500.0,0.00021643,2]
[349766719,1737417067777,-500.0,0.00021643,2]
[349766720,1737417067786,-500.0,0.00021643,2]
[349766721,1737417067796,-500.0,0.00021643,2]
[349766722,1737417067806,-500.0,0.00021643,2]
[349766723,1737417067815,-500.0,0.00021643,2]
[349766724,1737417067824,-500.0,0.00021643,2]
[349766725,1737417067833,-500.0,0.00021643,2]
[349766726,1737417067843,-407.27023133,0.00021643,2]
[349766727,1737417067852,-500.0,0.00021643,2]
[349766728,1737417067861,-500.0,0.00021643,2]
[349766729,1737417067871,-500.0,0.00021643,2]
[349766730,1737417067880,-500.0,0.00021643,2]
[349766731,1737417067889,-500.0,0.00021643,2]
[349766732,1737417067899,-500.0,0.00021643,2]
[349766733,1737417067909,-500.0,0.00021643,2]
[349766734,1737417067919,-611.04,0.00021643,2]
[349766735,1737417067929,-500.0,0.00021643,2]
[349766736,1737417067938,-500.0,0.00021643,2]
[349766737,1737417067947,-500.0,0.00021643,2]
[349766738,1737417067956,-500.0,0.00021643,2]
[349766739,1737417067965,-500.0,0.00021643,2]
[349766740,1737417067975,-500.0,0.00021643,2]
[349766741,1737417067984,-500.0,0.00021643,2]
[349766742,1737417067994,-542.98,0.00021643,2]
[349766743,1737417068004,-500.0,0.00021643,2]
[349766744,1737417068013,-500.0,0.00021643,2]
[349766745,1737417068023,-500.0,0.00021643,2]
[349766746,1737417068032,-500.0,0.00021643,2]
[349766747,1737417068043,-500.0,0.00021643,2]
[349766748,1737417068052,-500.0,0.00021643,2]
[349766749,1737417068061,-500.0,0.00021643,2]
[349766750,1737417068070,-500.0,0.00021643,2]
[349766751,1737417068079,-500.0,0.00021643,2]
[349766752,1737417068088,-540.2,0.00021643,2]
[349766753,1737417068097,-500.0,0.00021643,2]
[349766754,1737417068107,-500.0,0.00021643,2]
[349766755,1737417068116,-548.85,0.00021643,2]
[349766756,1737417068125,-500.0,0.00021643,2]
[349766757,1737417068134,-500.0,0.00021643,2]
[349766758,1737417068144,-500.0,0.00021643,2]
[349766759,1737417068153,-500.0,0.00021643,2]
[349766760,1737417068163,-500.0,0.00021643,2]
[349766761,1737417068173,-500.0,0.00021643,2]
[349766762,1737417068186,-500.0,0.00021643,2]
[349766763,1737417068195,-500.0,0.00021643,2]
[349766764,1737417068205,-500.0,0.00021643,2]
[349766765,1737417068214,-500.0,0.00021643,2]
[349766766,1737417068224,-500.0,0.00021643,2]
[349766767,1737417068234,-500.0,0.00021643,2]
[349766768,1737417068244,-500.0,0.00021643,2]
[349766769,1737417068254,-500.0,0.00021643,2]
[349766770,1737417068264,-500.0,0.00021643,2]
[349766771,1737417068274,-500.0,0.00021643,2]
[349766772,1737417068283,-500.0,0.00021643,2]
[349766773,1737417068294,-500.0,0.00021643,2]
[349766774,1737417068303,-669.36,0.00021643,2]
[349766775,1737417068312,-500.0,0.00021643,2]
[349766776,1737417068322,-500.0,0.00021643,2]
[349766777,1737417068331,-985.22,0.00021643,2]
[349766778,1737417068340,-500.0,0.00021643,2]
[349766779,1737417068349,-500.0,0.00021643,2]
[349766780,1737417068358,-500.0,0.00021643,2]
[349766781,1737417068368,-777.3,0.00021643,2]
[349766782,1737417068377,-544.49,0.00021643,2]
[349766783,1737417068386,-500.0,0.00021643,2]
[349766784,1737417068396,-1099.02,0.00021643,2]
[349766785,1737417068406,-1845.56,0.00021643,2]
[349766786,1737417068416,-500.0,0.00021643,2]
[349766787,1737417068426,-878.23,0.00021643,2]
[349766788,1737417068435,-500.0,0.00021643,2]
[349766789,1737417068445,-500.0,0.00021643,2]
[349766790,1737417068454,-500.0,0.00021643,2]
[349766791,1737417068464,-2476.57,0.00021643,2]
[349766792,1737417068474,-821.42,0.00021643,2]
[349766793,1737417068484,-1198.86,0.00021643,2]
[349766794,1737417068493,-500.0,0.00021643,2]
[349766795,1737417068502,-500.0,0.00021643,2]
[349766796,1737417068511,-500.0,0.00021643,2]
[349766797,1737417068521,-2121.34,0.00021643,2]
[349766798,1737417068531,-500.0,0.00021643,2]
[349766799,1737417068540,-500.0,0.00021643,2]
[349766800,1737417068556,-974.3,0.00021643,2]
[349766801,1737417068566,-792.0,0.00021643,2]
[349766802,1737417068575,-500.0,0.00021643,2]
[349766803,1737417068584,-1319.21,0.00021643,2]
[349766804,1737417068594,-500.0,0.00021643,2]
[349766805,1737417068603,-2587.78,0.00021643,2]
[349766806,1737417068612,-500.0,0.00021643,2]
[349766807,1737417068621,-500.0,0.00021643,2]
[349766808,1737417068631,-995.37,0.00021643,2]
[349766809,1737417068640,-500.0,0.00021643,2]
[349766810,1737417068649,-500.0,0.00021643,2]
[349766811,1737417068659,-500.0,0.00021643,2]
[349766812,1737417068669,-577.54,0.00021643,2]
[349766813,1737417068678,-500.0,0.00021643,2]
[349766814,1737417068688,-277.2,0.00021643,2]
[349766815,1737417068697,-500.0,0.00021643,2]
[349766816,1737417068706,-1101.58,0.00021643,2]
[349766817,1737417068715,-500.0,0.00021643,2]
[349766818,1737417068724,-500.0,0.00021643,2]
[349766819,1737417068733,-500.0,0.00021643,2]
[349766820,1737417068743,-500.0,0.00021643,2]
[349766821,1737417068752,-1460.32,0.00021643,2]
[349766822,1737417068761,-537.94,0.00021643,2]
[349766823,1737417068770,-1069.22,0.00021643,2]
[349766824,1737417068779,-500.0,0.00021643,2]
[349766825,1737417068789,-500.0,0.00021643,2]